[Event "Early-Titled-Tuesday-Blitz-February-20-2024"]
[Site "Chess.com"]
[Date "2024.02.20"]
[Round "3"]
[White "WiktoriaPOL"]
[Black "Young_Catalan_Player09"]
[Result "0-1"]
[WhiteElo "2286"]
[BlackElo "2556"]
[TimeControl "180+1"]
[EndTime "8:28:32 PST"]
[Termination "Young_Catalan_Player09 won by checkmate"]

1. c4 {[%clk 0:02:53.2]} 1... g6 {[%clk 0:02:59.1]} 2. Nc3 {[%clk 0:02:52.5]}
2... Bg7 {[%clk 0:02:59.6]} 3. g3 {[%clk 0:02:51.6]} 3... e5 {[%clk 0:02:58.1]}
4. Bg2 {[%clk 0:02:51.5]} 4... d6 {[%clk 0:02:58.7]} 5. e4 {[%clk 0:02:51.4]}
5... Nc6 {[%clk 0:02:57.5]} 6. Nge2 {[%clk 0:02:51.8]} 6... f5 {[%clk
0:02:49.2]} 7. d3 {[%clk 0:02:49.1]} 7... Nf6 {[%clk 0:02:48.9]} 8. O-O {[%clk
0:02:48.3]} 8... O-O {[%clk 0:02:49.1]} 9. h3 {[%clk 0:02:48.2]} 9... Be6 {[%clk
0:02:41.7]} 10. Be3 {[%clk 0:02:41]} 10... Qd7 {[%clk 0:02:38]} 11. Kh2 {[%clk
0:02:37]} 11... fxe4 {[%clk 0:02:36.4]} 12. dxe4 {[%clk 0:02:27.6]} 12... Bxc4
{[%clk 0:02:34.1]} 13. Nd5 {[%clk 0:02:26.4]} 13... Bxd5 {[%clk 0:02:27.2]} 14.
exd5 {[%clk 0:02:27.3]} 14... Ne7 {[%clk 0:02:27.5]} 15. Rc1 {[%clk 0:02:24.4]}
15... Nf5 {[%clk 0:02:24.5]} 16. Qc2 {[%clk 0:02:21.2]} 16... Rac8 {[%clk
0:02:12.4]} 17. Nc3 {[%clk 0:02:12.5]} 17... Nh5 {[%clk 0:02:03.6]} 18. g4
{[%clk 0:02:06]} 18... Nxe3 {[%clk 0:01:44.8]} 19. fxe3 {[%clk 0:02:06.9]} 19...
Nf6 {[%clk 0:01:45.4]} 20. Qe2 {[%clk 0:02:02.1]} 20... Bh6 {[%clk 0:01:44.3]}
21. Rc2 {[%clk 0:01:56.6]} 21... c5 {[%clk 0:01:34.9]} 22. dxc6 {[%clk 0:01:54]}
22... bxc6 {[%clk 0:01:33.7]} 23. Qe1 {[%clk 0:01:26.2]} 23... Qe7 {[%clk
0:01:18.8]} 24. Rcf2 {[%clk 0:01:22.3]} 24... d5 {[%clk 0:01:03.5]} 25. Qe2
{[%clk 0:01:07.9]} 25... Bg5 {[%clk 0:00:56]} 26. e4 {[%clk 0:00:49.8]} 26... d4
{[%clk 0:00:52.8]} 27. Na4 {[%clk 0:00:48.8]} 27... c5 {[%clk 0:00:51.3]} 28.
Qc4+ {[%clk 0:00:48.4]} 28... Kg7 {[%clk 0:00:49.7]} 29. Rc2 {[%clk 0:00:44.8]}
29... Bf4+ {[%clk 0:00:49.8]} 30. Kh1 {[%clk 0:00:44.1]} 30... Nxg4 {[%clk
0:00:42]} 31. Nxc5 {[%clk 0:00:28.5]} 31... Ne3 {[%clk 0:00:39.4]} 32. Ne6+
{[%clk 0:00:28]} 32... Kh6 {[%clk 0:00:36.7]} 33. Qxc8 {[%clk 0:00:05.4]} 33...
Rxc8 {[%clk 0:00:34.1]} 34. Rxc8 {[%clk 0:00:06.3]} 34... Qxe6 {[%clk
0:00:30.8]} 35. Rfc1 {[%clk 0:00:05.4]} 35... Qf6 {[%clk 0:00:28.2]} 36. R1c6
{[%clk 0:00:04.4]} 36... Qg5 {[%clk 0:00:27.6]} 37. R6c7 {[%clk 0:00:03.2]}
37... Qxg2# {[%clk 0:00:27.4]} 0-1

[Event "Early-Titled-Tuesday-Blitz-February-20-2024"]
[Site "Chess.com"]
[Date "2024.02.20"]
[Round "3"]
[White "Lady_Nika"]
[Black "AsaHoffmann"]
[Result "0-1"]
[WhiteElo "2562"]
[BlackElo "2350"]
[TimeControl "180+1"]
[EndTime "8:28:34 PST"]
[Termination "AsaHoffmann won by checkmate"]

1. e4 {[%clk 0:03:00.9]} 1... d6 {[%clk 0:02:55.2]} 2. d4 {[%clk 0:03:00.8]}
2... Nf6 {[%clk 0:02:54.7]} 3. f3 {[%clk 0:03:00.7]} 3... c6 {[%clk 0:02:54.1]}
4. c4 {[%clk 0:03:00.6]} 4... Nbd7 {[%clk 0:02:53.5]} 5. Nc3 {[%clk 0:03:00.5]}
5... e5 {[%clk 0:02:53.4]} 6. d5 {[%clk 0:03:00.5]} 6... Be7 {[%clk 0:02:52.7]}
7. Be3 {[%clk 0:03:00.4]} 7... O-O {[%clk 0:02:52.1]} 8. Qd2 {[%clk 0:03:00.7]}
8... c5 {[%clk 0:02:51.3]} 9. Bd3 {[%clk 0:03:00.8]} 9... a6 {[%clk 0:02:51]}
10. Nge2 {[%clk 0:03:01.2]} 10... Rb8 {[%clk 0:02:50.2]} 11. a4 {[%clk
0:03:01.2]} 11... b6 {[%clk 0:02:49.8]} 12. g4 {[%clk 0:03:01.2]} 12... Ne8
{[%clk 0:02:49.4]} 13. h4 {[%clk 0:03:01.4]} 13... Bxh4+ {[%clk 0:02:48.1]} 14.
Kd1 {[%clk 0:03:01]} 14... h6 {[%clk 0:02:47.6]} 15. Kc2 {[%clk 0:02:56.6]}
15... Nc7 {[%clk 0:02:46.8]} 16. Rag1 {[%clk 0:02:53.8]} 16... Bg5 {[%clk
0:02:45.1]} 17. f4 {[%clk 0:02:46.9]} 17... exf4 {[%clk 0:02:44]} 18. Nxf4
{[%clk 0:02:44.3]} 18... Ne5 {[%clk 0:02:43.8]} 19. Qe2 {[%clk 0:02:38.6]} 19...
Bd7 {[%clk 0:02:40.2]} 20. Rh5 {[%clk 0:02:26.2]} 20... b5 {[%clk 0:02:39.1]}
21. Rxg5 {[%clk 0:02:25.8]} 21... Qxg5 {[%clk 0:02:35.9]} 22. Ne6 {[%clk
0:02:19.6]} 22... Nxe6 {[%clk 0:02:34.2]} 23. Bxg5 {[%clk 0:02:19.1]} 23... Nxg5
{[%clk 0:02:33.7]} 24. axb5 {[%clk 0:02:19]} 24... axb5 {[%clk 0:02:33.4]} 25.
cxb5 {[%clk 0:02:14.3]} 25... c4 {[%clk 0:02:27.7]} 26. Bxc4 {[%clk 0:02:14.1]}
26... Rfc8 {[%clk 0:02:27.4]} 27. b3 {[%clk 0:02:06]} 27... Ngf3 {[%clk
0:02:26.5]} 28. Rd1 {[%clk 0:02:05.7]} 28... Bxg4 {[%clk 0:02:25.9]} 29. Qg2
{[%clk 0:01:49.1]} 29... Ng5 {[%clk 0:02:13.8]} 30. Rg1 {[%clk 0:01:43.1]} 30...
Bf3 {[%clk 0:02:11.1]} 31. Qg3 {[%clk 0:01:16.3]} 31... Nxc4 {[%clk 0:02:07.8]}
32. bxc4 {[%clk 0:01:16]} 32... Rxc4 {[%clk 0:02:07.5]} 33. Qxd6 {[%clk
0:01:09.3]} 33... Rxc3+ {[%clk 0:02:06.6]} 34. Kb2 {[%clk 0:01:04.3]} 34...
Rxb5+ {[%clk 0:02:06.1]} 35. Ka2 {[%clk 0:01:04.1]} 35... Rc8 {[%clk 0:01:57.7]}
36. Qa6 {[%clk 0:01:02.2]} 36... Rcb8 {[%clk 0:01:56.7]} 37. Rc1 {[%clk
0:00:49.2]} 37... Bxe4 {[%clk 0:01:56]} 38. Rc8+ {[%clk 0:00:48.9]} 38... Kh7
{[%clk 0:01:53.9]} 39. Rxb8 {[%clk 0:00:30.4]} 39... Bxd5+ {[%clk 0:01:53.1]}
40. Ka3 {[%clk 0:00:29.4]} 40... Rxb8 {[%clk 0:01:52.4]} 41. Qd3+ {[%clk
0:00:29]} 41... g6 {[%clk 0:01:45.1]} 42. Qxd5 {[%clk 0:00:29]} 42... Re8 {[%clk
0:01:43.2]} 43. Kb4 {[%clk 0:00:27.5]} 43... Re6 {[%clk 0:01:42.2]} 44. Qd7
{[%clk 0:00:18.9]} 44... Kg7 {[%clk 0:01:41.7]} 45. Qd4+ {[%clk 0:00:19]} 45...
Rf6 {[%clk 0:01:40.7]} 46. Kc3 {[%clk 0:00:19.3]} 46... Ne6 {[%clk 0:01:40.4]}
47. Qe5 {[%clk 0:00:19]} 47... h5 {[%clk 0:01:40.2]} 48. Kd3 {[%clk 0:00:19.2]}
48... h4 {[%clk 0:01:40.1]} 49. Ke3 {[%clk 0:00:19.1]} 49... h3 {[%clk
0:01:39.8]} 50. Kd2 {[%clk 0:00:13.6]} 50... Nf4 {[%clk 0:01:38.9]} 51. Qe4
{[%clk 0:00:03.7]} 51... Rd6+ {[%clk 0:01:36]} 52. Kc3 {[%clk 0:00:01.9]} 52...
Nd5+ {[%clk 0:01:34.7]} 53. Kd4 {[%clk 0:00:01.7]} 53... Nf6+ {[%clk 0:01:34.6]}
54. Ke5 {[%clk 0:00:02.2]} 54... Nxe4 {[%clk 0:01:34.3]} 55. Kxe4 {[%clk
0:00:02.7]} 55... f5+ {[%clk 0:01:34.3]} 56. Ke5 {[%clk 0:00:02.7]} 56... Rc6
{[%clk 0:01:33.5]} 57. Kf4 {[%clk 0:00:03]} 57... Kf6 {[%clk 0:01:32.4]} 58. Kg3
{[%clk 0:00:03.1]} 58... g5 {[%clk 0:01:32.5]} 59. Kxh3 {[%clk 0:00:03.4]} 59...
Rc3+ {[%clk 0:01:32.5]} 60. Kg2 {[%clk 0:00:03.7]} 60... Ke5 {[%clk 0:01:32.6]}
61. Kf2 {[%clk 0:00:04.3]} 61... Ke4 {[%clk 0:01:32.8]} 62. Ke2 {[%clk
0:00:04.7]} 62... Rc2+ {[%clk 0:01:32.8]} 63. Kf1 {[%clk 0:00:05.2]} 63... Ke3
{[%clk 0:01:32.4]} 64. Kg1 {[%clk 0:00:05.2]} 64... Kf3 {[%clk 0:01:32.5]} 65.
Kh1 {[%clk 0:00:05.7]} 65... Kg3 {[%clk 0:01:32.3]} 66. Kg1 {[%clk 0:00:06.6]}
66... Rc1# {[%clk 0:01:31.8]} 0-1

[Event "Early-Titled-Tuesday-Blitz-February-20-2024"]
[Site "Chess.com"]
[Date "2024.02.20"]
[Round "3"]
[White "RianKapriaga"]
[Black "2KTNGO"]
[Result "0-1"]
[WhiteElo "2259"]
[BlackElo "2534"]
[TimeControl "180+1"]
[EndTime "8:28:34 PST"]
[Termination "2KTNGO won on time"]

1. d4 {[%clk 0:02:58]} 1... Nf6 {[%clk 0:02:59.3]} 2. Nf3 {[%clk 0:02:53.4]}
2... e6 {[%clk 0:02:58.4]} 3. Bf4 {[%clk 0:02:53.2]} 3... Nh5 {[%clk 0:02:55.7]}
4. Bg3 {[%clk 0:02:49.7]} 4... Nxg3 {[%clk 0:02:52.9]} 5. hxg3 {[%clk
0:02:50.6]} 5... g6 {[%clk 0:02:53.1]} 6. e3 {[%clk 0:02:50.3]} 6... Bg7 {[%clk
0:02:53.3]} 7. c3 {[%clk 0:02:50]} 7... d6 {[%clk 0:02:53.5]} 8. Nbd2 {[%clk
0:02:49.6]} 8... Nd7 {[%clk 0:02:53.3]} 9. Bb5 {[%clk 0:02:47.4]} 9... a6 {[%clk
0:02:52.6]} 10. Bd3 {[%clk 0:02:44.6]} 10... b6 {[%clk 0:02:48.1]} 11. Qe2
{[%clk 0:02:44.2]} 11... Bb7 {[%clk 0:02:47.7]} 12. Be4 {[%clk 0:02:44.3]} 12...
Bxe4 {[%clk 0:02:37.9]} 13. Nxe4 {[%clk 0:02:45.1]} 13... d5 {[%clk 0:02:38.5]}
14. Ned2 {[%clk 0:02:45]} 14... c5 {[%clk 0:02:38.4]} 15. O-O-O {[%clk
0:02:41.9]} 15... Qc7 {[%clk 0:02:37.3]} 16. Kb1 {[%clk 0:02:38.4]} 16... b5
{[%clk 0:02:29]} 17. e4 {[%clk 0:02:33.1]} 17... dxe4 {[%clk 0:02:12.3]} 18.
Nxe4 {[%clk 0:02:34]} 18... cxd4 {[%clk 0:02:02]} 19. Nxd4 {[%clk 0:02:33]}
19... Ne5 {[%clk 0:01:17.7]} 20. Ng5 {[%clk 0:02:18.4]} 20... Qe7 {[%clk
0:01:07.3]} 21. f4 {[%clk 0:02:09]} 21... Nc4 {[%clk 0:01:05.8]} 22. Rxh7 {[%clk
0:01:54.8]} 22... Rxh7 {[%clk 0:00:59.1]} 23. Nxh7 {[%clk 0:01:55.7]} 23... Rc8
{[%clk 0:00:50.1]} 24. Ng5 {[%clk 0:01:49.7]} 24... b4 {[%clk 0:00:49.2]} 25.
cxb4 {[%clk 0:01:33.6]} 25... Bxd4 {[%clk 0:00:33.5]} 26. Rxd4 {[%clk
0:01:30.2]} 26... Qxb4 {[%clk 0:00:33.5]} 27. Rd3 {[%clk 0:01:06.4]} 27... Nxb2
{[%clk 0:00:22.1]} 28. Rb3 {[%clk 0:00:57]} 28... Qc5 {[%clk 0:00:22.3]} 29. Qe1
{[%clk 0:00:20.3]} 29... Na4 {[%clk 0:00:20.1]} 30. Ne4 {[%clk 0:00:13.1]} 30...
Qc2+ {[%clk 0:00:19.1]} 31. Ka1 {[%clk 0:00:12.4]} 31... Rd8 {[%clk 0:00:18.8]}
32. Nf6+ {[%clk 0:00:03.5]} 32... Kf8 {[%clk 0:00:17.4]} 0-1

[Event "Early-Titled-Tuesday-Blitz-February-20-2024"]
[Site "Chess.com"]
[Date "2024.02.20"]
[Round "3"]
[White "JaackCamel"]
[Black "ExchangeAB"]
[Result "0-1"]
[WhiteElo "2195"]
[BlackElo "2438"]
[TimeControl "180+1"]
[EndTime "8:28:35 PST"]
[Termination "ExchangeAB won by resignation"]

1. d4 {[%clk 0:02:47.9]} 1... d5 {[%clk 0:02:59.5]} 2. c4 {[%clk 0:02:47.3]}
2... c6 {[%clk 0:03:00.3]} 3. cxd5 {[%clk 0:02:46.7]} 3... cxd5 {[%clk
0:02:59.5]} 4. Bf4 {[%clk 0:02:47.2]} 4... Nf6 {[%clk 0:03:00.1]} 5. e3 {[%clk
0:02:46.9]} 5... Nc6 {[%clk 0:03:00.3]} 6. Nc3 {[%clk 0:02:46.4]} 6... Bf5
{[%clk 0:03:00.8]} 7. Qb3 {[%clk 0:02:44.4]} 7... Na5 {[%clk 0:02:59.4]} 8. Qa4+
{[%clk 0:02:42.6]} 8... Bd7 {[%clk 0:02:59.2]} 9. Qc2 {[%clk 0:02:40.3]} 9...
Rc8 {[%clk 0:02:58.6]} 10. Bd3 {[%clk 0:02:36.6]} 10... e6 {[%clk 0:02:58.6]}
11. Nge2 {[%clk 0:02:31.4]} 11... b5 {[%clk 0:02:58.3]} 12. a3 {[%clk
0:02:29.5]} 12... Be7 {[%clk 0:02:56.1]} 13. O-O {[%clk 0:02:28.9]} 13... O-O
{[%clk 0:02:55.5]} 14. h3 {[%clk 0:02:23.5]} 14... Nc4 {[%clk 0:02:51.9]} 15.
Rfd1 {[%clk 0:02:10.7]} 15... a5 {[%clk 0:02:51.3]} 16. Qb3 {[%clk 0:02:00.5]}
16... a4 {[%clk 0:02:17.5]} 17. Qa2 {[%clk 0:01:53.4]} 17... Na5 {[%clk
0:02:06.9]} 18. Nxb5 {[%clk 0:01:40.2]} 18... Nb3 {[%clk 0:02:05.1]} 19. Rab1
{[%clk 0:01:35.9]} 19... Qb6 {[%clk 0:02:04]} 20. Nbc3 {[%clk 0:01:30.8]} 20...
Bd6 {[%clk 0:01:53.5]} 21. Bxd6 {[%clk 0:01:26.5]} 21... Qxd6 {[%clk 0:01:54.4]}
22. Nc1 {[%clk 0:01:19.8]} 22... Rb8 {[%clk 0:01:52.2]} 23. Nxb3 {[%clk
0:01:19.4]} 23... axb3 {[%clk 0:01:36.5]} 24. Qa1 {[%clk 0:01:19.1]} 24... e5
{[%clk 0:01:32.7]} 25. dxe5 {[%clk 0:01:17.2]} 25... Qxe5 {[%clk 0:01:32.8]} 26.
Ne2 {[%clk 0:01:14.6]} 26... Qg5 {[%clk 0:01:23.1]} 27. Nf4 {[%clk 0:01:08.3]}
27... d4 {[%clk 0:01:16.3]} 28. Rf1 {[%clk 0:00:42.3]} 28... dxe3 {[%clk
0:01:15.4]} 29. fxe3 {[%clk 0:00:42.2]} 29... Qe5 {[%clk 0:01:06.7]} 30. Rbe1
{[%clk 0:00:39.8]} 30... Rfe8 {[%clk 0:00:56.4]} 31. Qb1 {[%clk 0:00:38.7]}
31... Bc6 {[%clk 0:00:52.6]} 32. Bf5 {[%clk 0:00:29.9]} 32... g6 {[%clk
0:00:47.5]} 33. Bd3 {[%clk 0:00:26.3]} 33... Be4 {[%clk 0:00:40.6]} 34. Bxe4
{[%clk 0:00:24.4]} 34... Nxe4 {[%clk 0:00:41.5]} 35. Qd3 {[%clk 0:00:20.5]}
35... Qxb2 {[%clk 0:00:39.3]} 36. Nd5 {[%clk 0:00:19.9]} 36... Qe5 {[%clk
0:00:33.2]} 37. Rf4 {[%clk 0:00:18.6]} 37... Kg7 {[%clk 0:00:27.5]} 38. Ref1
{[%clk 0:00:17.4]} 38... f5 {[%clk 0:00:23.3]} 39. R4f3 {[%clk 0:00:13.9]} 39...
Rbd8 {[%clk 0:00:22.6]} 40. Rd1 {[%clk 0:00:11.6]} 40... b2 {[%clk 0:00:22]} 41.
Qd4 {[%clk 0:00:11.5]} 41... Qxd4 {[%clk 0:00:21.9]} 0-1

[Event "Early-Titled-Tuesday-Blitz-February-20-2024"]
[Site "Chess.com"]
[Date "2024.02.20"]
[Round "3"]
[White "ansko1999"]
[Black "N4700000"]
[Result "1-0"]
[WhiteElo "2695"]
[BlackElo "2478"]
[TimeControl "180+1"]
[EndTime "8:28:36 PST"]
[Termination "ansko1999 won on time"]

1. Nf3 {[%clk 0:02:59.3]} 1... g6 {[%clk 0:02:57.6]} 2. e4 {[%clk 0:02:57]} 2...
c5 {[%clk 0:02:55.8]} 3. Bc4 {[%clk 0:02:55.1]} 3... Bg7 {[%clk 0:02:52]} 4. c3
{[%clk 0:02:54.6]} 4... Nc6 {[%clk 0:02:38.8]} 5. d4 {[%clk 0:02:51.8]} 5...
cxd4 {[%clk 0:02:31.8]} 6. cxd4 {[%clk 0:02:52.7]} 6... d6 {[%clk 0:02:30.6]} 7.
h3 {[%clk 0:02:50.7]} 7... Nf6 {[%clk 0:02:06.4]} 8. Qe2 {[%clk 0:02:22.9]} 8...
O-O {[%clk 0:02:00.2]} 9. Nc3 {[%clk 0:02:20.1]} 9... e6 {[%clk 0:01:32.4]} 10.
Bb3 {[%clk 0:01:55.8]} 10... a6 {[%clk 0:01:00.2]} 11. O-O {[%clk 0:01:51.2]}
11... b5 {[%clk 0:00:59.7]} 12. d5 {[%clk 0:01:39.7]} 12... exd5 {[%clk
0:00:56.8]} 13. Nxd5 {[%clk 0:01:39.2]} 13... Nxd5 {[%clk 0:00:34.2]} 14. Bxd5
{[%clk 0:01:40.1]} 14... Bb7 {[%clk 0:00:32.6]} 15. Rd1 {[%clk 0:01:36.8]} 15...
Qe7 {[%clk 0:00:19]} 16. Bg5 {[%clk 0:01:33.1]} 16... Qc7 {[%clk 0:00:18.9]} 17.
Rac1 {[%clk 0:01:30.4]} 17... Rac8 {[%clk 0:00:18]} 18. Bf4 {[%clk 0:01:28.3]}
18... Rfd8 {[%clk 0:00:13.3]} 19. Qd2 {[%clk 0:01:08.6]} 19... Qe7 {[%clk
0:00:10.6]} 20. Bg5 {[%clk 0:01:06.1]} 20... Bf6 {[%clk 0:00:10.4]} 21. a3
{[%clk 0:01:01.1]} 21... Bxg5 {[%clk 0:00:06.1]} 22. Nxg5 {[%clk 0:01:02]} 22...
Rf8 {[%clk 0:00:04.9]} 23. h4 {[%clk 0:00:40.4]} 23... Ne5 {[%clk 0:00:03.9]}
24. Bxb7 {[%clk 0:00:25.1]} 24... Qxb7 {[%clk 0:00:04.8]} 25. Qxd6 {[%clk
0:00:20.5]} 25... Rxc1 {[%clk 0:00:04.7]} 26. Rxc1 {[%clk 0:00:21.3]} 26... Nc4
{[%clk 0:00:04.7]} 27. Qf6 {[%clk 0:00:21]} 27... Re8 {[%clk 0:00:02.1]} 28. Rd1
{[%clk 0:00:17.9]} 28... Qe7 {[%clk 0:00:01.7]} 29. Qf4 {[%clk 0:00:07.8]} 1-0

[Event "Early-Titled-Tuesday-Blitz-February-20-2024"]
[Site "Chess.com"]
[Date "2024.02.20"]
[Round "3"]
[White "InitiatingASC"]
[Black "Dewarfd"]
[Result "1-0"]
[WhiteElo "2384"]
[BlackElo "2145"]
[TimeControl "180+1"]
[EndTime "8:28:41 PST"]
[Termination "InitiatingASC won on time"]

1. d4 {[%clk 0:02:58.1]} 1... Nf6 {[%clk 0:02:59.2]} 2. c4 {[%clk 0:02:57.5]}
2... g6 {[%clk 0:02:59.3]} 3. Nc3 {[%clk 0:02:57.1]} 3... d5 {[%clk 0:02:58.8]}
4. Nf3 {[%clk 0:02:52.6]} 4... Bg7 {[%clk 0:02:58.3]} 5. Bf4 {[%clk 0:02:52.8]}
5... O-O {[%clk 0:02:53.8]} 6. e3 {[%clk 0:02:52.9]} 6... c6 {[%clk 0:02:53.8]}
7. Be2 {[%clk 0:02:50.6]} 7... Be6 {[%clk 0:02:53.6]} 8. c5 {[%clk 0:02:45.7]}
8... Bc8 {[%clk 0:02:53.1]} 9. Ne5 {[%clk 0:02:41.1]} 9... Nfd7 {[%clk
0:02:52.3]} 10. Nd3 {[%clk 0:02:36]} 10... e5 {[%clk 0:02:51.4]} 11. dxe5 {[%clk
0:02:32.8]} 11... Re8 {[%clk 0:02:50.5]} 12. O-O {[%clk 0:02:18.4]} 12... Qe7
{[%clk 0:02:42.2]} 13. e6 {[%clk 0:02:11.2]} 13... fxe6 {[%clk 0:02:37.7]} 14.
Bd6 {[%clk 0:02:11.4]} 14... Qf7 {[%clk 0:02:25.1]} 15. Qc2 {[%clk 0:02:06.4]}
15... Bf8 {[%clk 0:02:24.5]} 16. e4 {[%clk 0:01:54.8]} 16... Bxd6 {[%clk
0:02:11.6]} 17. cxd6 {[%clk 0:01:54.6]} 17... d4 {[%clk 0:02:00.3]} 18. Na4
{[%clk 0:01:53]} 18... e5 {[%clk 0:01:55.6]} 19. Ndc5 {[%clk 0:01:50.9]} 19...
Qf6 {[%clk 0:01:28.9]} 20. Nxb7 {[%clk 0:01:34.5]} 20... Bxb7 {[%clk 0:01:07.6]}
21. Qb3+ {[%clk 0:01:32.7]} 21... Kh8 {[%clk 0:00:59.6]} 22. Qxb7 {[%clk
0:01:32.9]} 22... Qxd6 {[%clk 0:00:59.1]} 23. Qxa8 {[%clk 0:01:32.5]} 23... Qc7
{[%clk 0:00:54.7]} 24. Rac1 {[%clk 0:01:26.9]} 24... Rc8 {[%clk 0:00:51.2]} 25.
Bg4 {[%clk 0:01:01.5]} 25... Na6 {[%clk 0:00:37.5]} 26. Qxc6 {[%clk 0:00:59.6]}
26... Qxc6 {[%clk 0:00:37]} 27. Rxc6 {[%clk 0:00:59.6]} 27... Rxc6 {[%clk
0:00:37.5]} 28. Bxd7 {[%clk 0:01:00.3]} 28... Rc2 {[%clk 0:00:37]} 29. Bb5
{[%clk 0:00:55.4]} 29... Nc5 {[%clk 0:00:20.1]} 30. Nxc5 {[%clk 0:00:54.5]}
30... Rxc5 {[%clk 0:00:21]} 31. Bd3 {[%clk 0:00:54.2]} 31... Kg7 {[%clk
0:00:17.5]} 32. f3 {[%clk 0:00:52]} 32... Kf6 {[%clk 0:00:17.3]} 33. Kf2 {[%clk
0:00:52.5]} 33... h5 {[%clk 0:00:13.5]} 34. Ke2 {[%clk 0:00:51.8]} 34... Kg5
{[%clk 0:00:13.4]} 35. Kd2 {[%clk 0:00:50.2]} 35... h4 {[%clk 0:00:12.8]} 36. g3
{[%clk 0:00:49.7]} 36... hxg3 {[%clk 0:00:09.9]} 37. hxg3 {[%clk 0:00:50]} 37...
Rc7 {[%clk 0:00:09.2]} 38. f4+ {[%clk 0:00:50.1]} 38... Kf6 {[%clk 0:00:08.2]}
39. g4 {[%clk 0:00:45.5]} 39... exf4 {[%clk 0:00:06.9]} 40. Rxf4+ {[%clk
0:00:45.1]} 40... Kg5 {[%clk 0:00:03.4]} 41. Rf8 {[%clk 0:00:44.2]} 41... Rh7
{[%clk 0:00:03.6]} 42. Kc2 {[%clk 0:00:40.9]} 42... Rh2+ {[%clk 0:00:02.4]} 43.
Kb3 {[%clk 0:00:41]} 43... Kxg4 {[%clk 0:00:02.6]} 44. e5 {[%clk 0:00:39.5]} 1-0

[Event "Early-Titled-Tuesday-Blitz-February-20-2024"]
[Site "Chess.com"]
[Date "2024.02.20"]
[Round "3"]
[White "s-dshubin"]
[Black "Kgutierrez95"]
[Result "1-0"]
[WhiteElo "2364"]
[BlackElo "2106"]
[TimeControl "180+1"]
[EndTime "8:28:42 PST"]
[Termination "s-dshubin won by resignation"]

1. e4 {[%clk 0:02:59.4]} 1... c6 {[%clk 0:02:55.3]} 2. d4 {[%clk 0:02:58.5]}
2... d5 {[%clk 0:02:55.9]} 3. Nc3 {[%clk 0:02:59.4]} 3... dxe4 {[%clk
0:02:55.6]} 4. Nxe4 {[%clk 0:03:00.3]} 4... Bf5 {[%clk 0:02:55.7]} 5. Ng3 {[%clk
0:03:00.3]} 5... Bg6 {[%clk 0:02:56.4]} 6. h4 {[%clk 0:03:00.9]} 6... h6 {[%clk
0:02:56.9]} 7. Nf3 {[%clk 0:03:01.5]} 7... Nd7 {[%clk 0:02:55.3]} 8. h5 {[%clk
0:03:01.8]} 8... Bh7 {[%clk 0:02:55.6]} 9. Bd3 {[%clk 0:03:02.5]} 9... Bxd3
{[%clk 0:02:56]} 10. Qxd3 {[%clk 0:03:03.4]} 10... e6 {[%clk 0:02:55.5]} 11. Bf4
{[%clk 0:03:02.5]} 11... Qa5+ {[%clk 0:02:55.2]} 12. Bd2 {[%clk 0:03:01.8]}
12... Bb4 {[%clk 0:02:53.8]} 13. c3 {[%clk 0:03:02]} 13... Be7 {[%clk
0:02:53.7]} 14. c4 {[%clk 0:03:02.3]} 14... Qc7 {[%clk 0:02:52.9]} 15. O-O-O
{[%clk 0:03:02.1]} 15... Ngf6 {[%clk 0:02:51.6]} 16. Ne4 {[%clk 0:02:58.7]}
16... O-O {[%clk 0:02:46.3]} 17. g3 {[%clk 0:02:50.6]} 17... c5 {[%clk
0:02:43.5]} 18. Bf4 {[%clk 0:02:46.9]} 18... Qa5 {[%clk 0:02:43]} 19. Kb1 {[%clk
0:02:37.8]} 19... cxd4 {[%clk 0:02:34.6]} 20. Nxd4 {[%clk 0:02:37.4]} 20... Nc5
{[%clk 0:02:33.1]} 21. Nxf6+ {[%clk 0:02:30.7]} 21... Bxf6 {[%clk 0:02:33.4]}
22. Qf3 {[%clk 0:02:31]} 22... Rfd8 {[%clk 0:02:20]} 23. Nb3 {[%clk 0:02:25.2]}
23... Qb4 {[%clk 0:02:16.3]} 24. g4 {[%clk 0:02:08.6]} 24... Qxc4 {[%clk
0:01:30.4]} 25. Nxc5 {[%clk 0:01:54.3]} 25... Qxc5 {[%clk 0:01:28.2]} 26. Bxh6
{[%clk 0:01:47.8]} 26... Qb4 {[%clk 0:00:54.1]} 27. Bc1 {[%clk 0:01:43.3]} 27...
Rxd1 {[%clk 0:00:52.2]} 28. Rxd1 {[%clk 0:01:42.8]} 28... Rc8 {[%clk 0:00:51.3]}
29. Qe2 {[%clk 0:01:38.8]} 29... Rd8 {[%clk 0:00:22.5]} 30. g5 {[%clk
0:01:30.1]} 30... Rxd1 {[%clk 0:00:19.8]} 31. Qxd1 {[%clk 0:01:27.5]} 31... Bxg5
{[%clk 0:00:19.6]} 32. Bxg5 {[%clk 0:01:24.2]} 32... Qe4+ {[%clk 0:00:18]} 33.
Ka1 {[%clk 0:01:21.1]} 33... f6 {[%clk 0:00:18.1]} 34. Bc1 {[%clk 0:01:18.4]}
34... Qf5 {[%clk 0:00:14.9]} 35. h6 {[%clk 0:01:18.2]} 35... gxh6 {[%clk
0:00:13.6]} 36. Qd8+ {[%clk 0:01:13.2]} 36... Kg7 {[%clk 0:00:13.2]} 37. Qe7+
{[%clk 0:01:13.3]} 37... Kg6 {[%clk 0:00:13.4]} 38. Qe8+ {[%clk 0:01:12]} 38...
Kh7 {[%clk 0:00:12.2]} 39. Qf7+ {[%clk 0:01:11.4]} 39... Kh8 {[%clk 0:00:11.8]}
40. Bxh6 {[%clk 0:01:10.3]} 40... Qh7 {[%clk 0:00:08.1]} 41. Qxh7+ {[%clk
0:01:00.5]} 41... Kxh7 {[%clk 0:00:07.8]} 42. Be3 {[%clk 0:01:01.4]} 42... Kg6
{[%clk 0:00:07.9]} 43. Bxa7 {[%clk 0:01:01.2]} 43... Kf5 {[%clk 0:00:07.5]} 44.
a4 {[%clk 0:01:01.2]} 44... Ke4 {[%clk 0:00:08.4]} 45. a5 {[%clk 0:01:01.5]}
45... f5 {[%clk 0:00:09.3]} 46. b4 {[%clk 0:01:01.5]} 46... Kd3 {[%clk
0:00:09.2]} 47. b5 {[%clk 0:01:01.7]} 47... Kc4 {[%clk 0:00:09.3]} 48. a6 {[%clk
0:00:57.9]} 48... bxa6 {[%clk 0:00:08.9]} 49. b6 {[%clk 0:00:58.5]} 49... Kb5
{[%clk 0:00:08.7]} 50. b7 {[%clk 0:00:58.9]} 1-0